[Event "Budapest IM-B ONE WEEK Feb 2024"]
[Site "Budapest"]
[Date "2024.02.29"]
[Round "6.1"]
[White "Skytte, Rasmus"]
[Black "Matyassy, Lazar"]
[Result "1/2-1/2"]
[ECO "D52"]
[WhiteElo "2342"]
[BlackElo "2176"]
[Annotator "TA"]
[PlyCount "82"]
[EventDate "2024.02.25"]
[EventType "tourn"]
[EventCountry "HUN"]
[SourceTitle "playchess.com"]
[Source "ChessBase"]
[SourceQuality "1"]
[TimeControl "5400+30"]

{[%evp 24,82,44,39,34,36,42,47,42,41,60,62,68,48,51,47,50,50,56,41,62,43,43,39,41,22,37,40,67,75,70,67,119,113,104,46,70,39,84,89,80,80,83,38,144,23,23,16,19,0,0,0,0,0,0,0,0,0,0,0,0]} 1. d4 {[%emt 0:00:11]} Nf6 {[%emt 0:00:05]} 2. Nf3 {[%emt 0:00:17]} e6 {[%emt 0:00:27]} 3. c4 {[%emt 0:00:55]} d5 {[%emt 0:00:12]} 4. Nc3 {[%emt 0:01:01]} Nbd7 {[%emt 0:00:13][%cal Bb8d7,Bd7f6,Bf6d5,Bd5c3][%mdl 32]} 5. Bg5 {[%emt 0:01:47]} c6 {[%emt 0:00:22]} 6. e3 {[%emt 0:02:16]} Qa5 {[%emt 0:00:56]} 7. Nd2 {[%emt 0:02:39]} dxc4 {[%emt 0:00:32]} 8. Bxf6 {[%emt 0:00:46]} Nxf6 {[%emt 0:00:07]} 9. Nxc4 {[%emt 0:00:08]} Qc7 {[%emt 0:00:04]} 10. Rc1 {[%emt 0:00:39]} Be7 {[%emt 0:06:18]} 11. g3 {[%emt 0:01:48]} O-O {[%emt 0:06:11]} 12. Bg2 {[%emt 0:00:09]} Nd5 {[%emt 0:05:26]} 13. O-O {[%emt 0:01:39]} Nxc3 {[%emt 0:00:39]} 14. Rxc3 {[%emt 0:00:45]} Rd8 {[%emt 0:00:52]} 15. Qc2 {[%emt 0:09:06]} Bd7 {[%emt 0:06:28] White is slightly better.} 16. a3 {[%emt 0:03:37]} Rac8 {[%emt 0:05:47]} 17. b4 {[%emt 0:03:24]} Be8 {[%emt 0:07:38]} 18. Rc1 {[%emt 0:02:03]} a6 {[%emt 0:02:52]} 19. Qb3 {[%emt 0:03:49]} Bf8 {[%emt 0:04:39]} 20. f4 {[%emt 0:04:12]} g6 {[%emt 0:02:15]} 21. Bf3 {[%emt 0:04:16]} Qe7 {[%emt 0:06:39]} 22. Kg2 {[%emt 0:07:09]} f6 {[%emt 0:02:59]} 23. Nb6 {[%emt 0:04:58]} Rb8 {[%emt 0:00:26]} 24. Qc2 {[%emt 0:04:52]} Bf7 {[%emt 0:03:00]} 25. Rd1 {[%emt 0:06:34]} Re8 {[%emt 0:11:32]} 26. e4 {[%emt 0:02:48] White is much more active.} Rbd8 {[%emt 0:01:13]} 27. Nc4 {[%emt 0:03:47]} g5 {[%emt 0:14:31]} ({Black should play} 27... Bg7 $14) 28. fxg5 $16 {[%emt 0:03:26]} fxg5 {[%emt 0:00:11]} 29. e5 {[%emt 0:00:55] Inhibits Qf6.} (29. Qe2 $16) 29... Bg6 {[%emt 0:01:14]} 30. Be4 {[%emt 0:01:22]} Bxe4+ {[%emt 0:01:22]} 31. Qxe4 {[%emt 0:01:49]} Qg7 {[%emt 0:01:06]} 32. Rf3 {[%emt 0:02:52]} Be7 {[%emt 0:00:54]} 33. Rdf1 {[%emt 0:01:18][%cal Of3f7]} Rf8 {[%emt 0:00:42] [#]} (33... Qg6 $1 $14 34. Qxg6+ hxg6) 34. Rxf8+ {[%emt 0:01:34]} (34. Na5 $1 $16 {[%cal Ra5b7]}) 34... Rxf8 $11 {[%emt 0:00:21]} 35. Rxf8+ {[%emt 0:00:56]} Bxf8 $16 {[%emt 0:00:10][%mdl 4096] Endgame. KQB-KQN. The position is equal.} 36. h4 {[%emt 0:08:13]} gxh4 {[%emt 0:01:35]} 37. Qxh4 {[%emt 0:00:44]} (37. Qf3 {looks sharper.} hxg3 38. Qh5 Qf7 39. Qg5+) 37... Qg6 {[%emt 0:02:57] [#] Hoping for ...Qc2+.} 38. Nd6 {[%emt 0:01:40]} Bxd6 {[%emt 0:02:50]} 39. exd6 {[%emt 0:00:27] Strongly threatening d7.} Qc2+ {[%emt 0:00:11]} 40. Kh3 {[%emt 0:01:48]} Qf5+ {[%emt 0:03:07]} 41. Kg2 {[%emt 0:00:30]} (41. Qg4+ Kf7) 41... Qc2+ {[%emt 0:00:06] Weighted Error Value: White=0.17 (very precise) /Black=0.12 (very precise) .  Mistake:       	White=2     	Black=2      Inaccurate:     	White=2     	Black=2      OK:         	White=8     	Black=11     Best:        	White=1     	---} 1/2-1/2

[Event "Budapest IM-B ONE WEEK Feb 2024"]
[Site "Budapest"]
[Date "2024.02.29"]
[Round "6.2"]
[White "Haszon, David"]
[Black "Nemeth, Zoltan"]
[Result "1-0"]
[ECO "D00"]
[WhiteElo "2245"]
[BlackElo "2194"]
[Annotator "TA"]
[PlyCount "85"]
[EventDate "2024.02.25"]
[EventType "tourn"]
[EventCountry "HUN"]
[SourceTitle "playchess.com"]
[Source "ChessBase"]
[SourceQuality "1"]
[TimeControl "5400+30"]

{[%evp 9,85,-31,-19,-23,21,16,14,0,0,-34,-25,-39,-36,-41,-14,-12,0,-17,0,0,0,0,0,0,0,0,16,16,41,35,43,39,72,68,101,88,90,45,44,32,55,41,127,61,64,19,19,33,26,26,82,45,50,52,132,102,150,0,443,429,414,393,29977,29978,29977,29978,29979,29980,29981,29981,29985,29986,29987,29988,29988,29989,29990,29991]} 1. d4 {[%emt 0:00:07]} d5 {[%emt 0:00:31]} 2. Bf4 {[%emt 0:00:26]} c5 {[%emt 0:01:46]} 3. Nc3 {[%emt 0:02:08][%cal Bb1c3,Bc3a4,Ba4c5][%mdl 32]} Nc6 {[%emt 0:04:52]} 4. e3 {[%emt 0:05:22]} a6 {[%emt 0:03:03]} 5. dxc5 {[%emt 0:04:10]} e6 {[%emt 0:04:11]} (5... e5 $5 6. Bg3 $8 d4 7. exd4 exd4 $15) 6. Na4 {[%emt 0:05:06]} Bxc5 {[%emt 0:04:11]} 7. Nxc5 {[%emt 0:00:12]} Qa5+ {[%emt 0:00:06]} 8. Qd2 {[%emt 0:02:02] [#] Qxa5 wäre nun fies. Die Stellung ist ausgeglichen.} Qxc5 {[%emt 0:00:05]} 9. a3 {[%emt 0:00:53]} Nf6 {[%emt 0:03:31]} 10. b4 {[%emt 0:04:23]} Qe7 {[%emt 0:02:52]} 11. c4 {[%emt 0:02:43]} dxc4 {[%emt 0:03:42]} 12. Bxc4 {[%emt 0:00:53]} e5 {[%emt 0:00:44]} 13. Bg3 {[%emt 0:03:40]} O-O {[%emt 0:08:43]} 14. Nf3 {[%emt 0:01:02]} Bg4 {[%emt 0:04:00]} 15. Qb2 {[%emt 0:05:14][%cal Rf3e5]} Rac8 {[%emt 0:07:56]} 16. Bb3 {[%emt 0:03:58]} Bxf3 {[%emt 0:10:10]} 17. gxf3 {[%emt 0:00:18]} Nh5 {[%emt 0:01:48]} 18. O-O {[%emt 0:05:29]} Rfd8 {[%emt 0:04:55]} 19. Rac1 {[%emt 0:03:59]} Nxg3 {[%emt 0:00:21]} 20. hxg3 {[%emt 0:00:56]} Rd6 {[%emt 0:01:28]} 21. Kg2 {[%emt 0:05:19]} Rcd8 {[%emt 0:00:34]} 22. Rfd1 {[%emt 0:02:11]} Rxd1 {[%emt 0:00:06]} 23. Rxd1 {[%emt 0:01:19]} Rxd1 {[%emt 0:00:06]} 24. Bxd1 $16 {[%emt 0:00:10][%mdl 4096] Endspiel. KQB-KQN} h5 {[%emt 0:05:47]} 25. Ba4 {[%emt 0:02:19]} e4 {[%emt 0:11:57] [#]} (25... Nd8 $14) 26. Bxc6 {[%emt 0:06:11]} (26. f4 $1 $16) 26... bxc6 {[%emt 0:00:05] KQ-KQ} 27. f4 {[%emt 0:02:45]} c5 {[%emt 0:02:54]} 28. b5 {[%emt 0:01:48]} axb5 {[%emt 0:05:37]} 29. Qxb5 {[%emt 0:00:22] Zielt auf a4 ab.} Kh7 {[%emt 0:06:54]} (29... h4 $11) 30. Qc6 {[%emt 0:03:01] a4 ist eine echte Drohung.} f5 $1 {[%emt 0:01:12]} 31. a4 {[%emt 0:00:52]} h4 {[%emt 0:00:31]} ({Günstiger ist} 31... Qa7 $14) 32. Qd5 {[%emt 0:00:42]} g6 {[%emt 0:00:20]} (32... hxg3 $142 33. Qxf5+ g6 34. Qh3+ Kg7) 33. a5 {[%emt 0:00:44] Weiß steht aktiver.} ({Der einzige Zug:} 33. gxh4 $16 {Schwarz muss nun a5 beachten.} Qxh4 34. a5 (34. Qxc5 Qg4+ 35. Kf1 Qd1+ 36. Kg2 Qg4+ 37. Kh2 Qh5+ 38. Kg2 Qf3+ 39. Kg1 Qg4+ 40. Kh2 Qh5+ 41. Kg2 Qf3+ 42. Kg1 Qd1+ 43. Kh2 Qh5+ $11) 34... Qg4+ 35. Kf1) 33... c4 $2 {[%emt 0:00:54][%mdl 8192]} 34. Qxc4 $18 {[%emt 0:02:00] Droht a6 und aus.} hxg3 {[%emt 0:00:13]} 35. Kxg3 {[%emt 0:02:38]} Qa3 $2 {[%emt 0:00:09]} (35... Qd7 $18 36. Qe2 Qa4) 36. Qf7+ {[%emt 0:01:28] Weiß setzt Matt.} Kh8 {[%emt 0:00:44]} 37. Qf6+ {[%emt 0:01:09]} (37. Qxg6 Qxe3+ 38. Kg2 Qf3+ 39. Kg1 Qd1+ 40. Kh2 Qe2 $18) 37... Kh7 {[%emt 0:00:06]} 38. a6 {[%emt 0:01:06][%cal Ba5a6,Ba6a7][%mdl 32]} Qc1 {[%emt 0:00:04]} 39. Kg2 {[%emt 0:01:15]} Qd1 {[%emt 0:00:09]} 40. Qh4+ {[%emt 0:00:26]} Kg7 {[%emt 0:00:18]} 41. a7 {[%emt 0:00:27]} Qa1 {[%emt 0:01:22]} 42. Qe7+ {[%emt 0:00:12]} Kh6 {[%emt 0:00:03]} 43. Qf8+ {[%emt 0:00:12] Gewichteter Fehlerwert: Weiß=0.14 (sehr präzise) /Schwarz=0.44.  Verlustzug:     	---       	Schwarz=1     Fehler:       	Weiß=2     	Schwarz=5     Ungenau:       	Weiß=4     	Schwarz=4     OK:         	Weiß=9     	Schwarz=10    Bester:       	Weiß=3     	---        Stark:        	---       	Schwarz=1} 1-0

[Event "Budapest IM-B ONE WEEK Feb 2024"]
[Site "Budapest"]
[Date "2024.02.29"]
[Round "6.3"]
[White "Polyik, Peter"]
[Black "Poysti, Nathanael"]
[Result "1/2-1/2"]
[ECO "A45"]
[WhiteElo "2289"]
[BlackElo "2163"]
[Annotator "TA"]
[PlyCount "53"]
[EventDate "2024.02.25"]
[EventType "tourn"]
[EventCountry "HUN"]
[SourceTitle "playchess.com"]
[Source "ChessBase"]
[SourceQuality "1"]
[TimeControl "5400+30"]

{[%evp 14,53,18,24,52,20,21,20,25,9,27,26,25,26,28,26,28,33,39,31,102,97,97,94,89,87,73,62,62,64,101,110,112,102,110,36,47,0,123,0,31,0]} 1. d4 {[%emt 0:00:05]} Nf6 {[%emt 0:00:06]} 2. Bg5 {[%emt 0:00:07]} e6 {[%emt 0:00:10]} 3. e4 {[%emt 0:00:10]} h6 {[%emt 0:00:16]} 4. Bxf6 {[%emt 0:00:07]} Qxf6 {[%emt 0:00:03]} 5. Nc3 {[%emt 0:00:09]} Bb4 {[%emt 0:00:14]} 6. Nge2 {[%emt 0:00:26]} d5 {[%emt 0:00:46]} 7. a3 {[%emt 0:00:37]} Bxc3+ {[%emt 0:02:07]} 8. Nxc3 {[%emt 0:00:07]} c6 {[%emt 0:05:51]} 9. e5 {[%emt 0:06:45]} Qe7 {[%emt 0:01:19]} 10. Bd3 {[%emt 0:05:24]} b6 {[%emt 0:00:04] The position is equal.} 11. O-O {[%emt 0:21:12]} Ba6 {[%emt 0:00:12]} 12. Bxa6 {[%emt 0:05:58]} Nxa6 {[%emt 0:00:03]} 13. Qd3 {[%emt 0:00:10]} Nc7 {[%emt 0:00:23]} 14. Nd1 {[%emt 0:00:25][%cal Bc3d1,Bd1b2,Bb2d3][%mdl 32]} c5 {[%emt 0:06:55]} 15. c3 {[%emt 0:01:59]} c4 {[%emt 0:08:59]} 16. Qc2 {[%emt 0:04:37]} O-O-O {[%emt 0:02:57]} (16... b5 $14) 17. b3 $16 {[%emt 0:01:21]} cxb3 {[%emt 0:00:37]} 18. Qxb3 {[%emt 0:00:07]} Kb8 {[%emt 0:00:40]} 19. Nb2 {[%emt 0:03:43]} Ka8 {[%emt 0:00:31]} 20. Nd3 {[%emt 0:02:11]} Rb8 {[%emt 0:02:03]} 21. a4 {[%emt 0:15:23][%cal Ba3a4,Ba4a5][%mdl 32]} Na6 {[%emt 0:02:03]} 22. Qb5 {[%emt 0:07:34]} Qb7 {[%emt 0:00:31]} 23. a5 {[%emt 0:00:31] [#] And now axb6 would win. White is more active.} Nc7 {[%emt 0:00:46]} 24. Qd7 {[%emt 0:03:47]} (24. Qb2 $16) 24... Na6 $14 {[%emt 0:00:36]} 25. Qb5 {[%emt 0:01:33]} (25. Qd6 $14 b5 26. Rfc1) 25... Nc7 $16 {[%emt 0:00:02]} 26. Qd7 {[%emt 0:01:40]} ({Better is} 26. Qb2 $16) 26... Na6 $14 {[%emt 0:00:01]} 27. Qb5 {[%emt 0:00:05] Weighted Error Value: White=0.23 (precise) /Black=0.07 (flawless) .  Mistake:       	White=3     	Black=1      Inaccurate:     	White=2     	Black=1      OK:         	White=7     	Black=8      Best:        	---       	Black=4} 1/2-1/2

[Event "Budapest IM-B ONE WEEK Feb 2024"]
[Site "Budapest"]
[Date "2024.02.29"]
[Round "6.4"]
[White "Golis, Wiktor"]
[Black "Krizsany, Laszlo"]
[Result "1-0"]
[ECO "B00"]
[WhiteElo "2123"]
[BlackElo "2346"]
[Annotator "TA"]
[PlyCount "71"]
[EventDate "2024.02.25"]
[EventType "tourn"]
[EventCountry "HUN"]
[SourceTitle "playchess.com"]
[Source "ChessBase"]
[SourceQuality "1"]
[TimeControl "5400+30"]

{[%evp 11,71,8,63,68,66,69,73,77,78,72,106,54,56,79,105,77,54,47,149,0,314,181,206,185,214,82,273,270,252,285,267,255,259,277,335,321,287,29,33,30,591,571,588,584,582,557,785,763,923,894,907,859,1669,1647,29992,29993,29993,29994,29994,29995,29995,516]} 1. e4 {[%emt 0:00:07]} b6 {[%emt 0:00:12]} 2. d4 {[%emt 0:00:14]} Bb7 {[%emt 0:00:06]} 3. Bd3 {[%emt 0:00:18]} e6 {[%emt 0:00:13]} 4. Nf3 {[%emt 0:00:14]} c5 {[%emt 0:00:12]} 5. c3 {[%emt 0:00:41][%cal Bc2c3,Bc3c4][%mdl 32]} Nf6 {[%emt 0:00:12][%cal Bg8f6,Bf6d5,Bd5c7][%mdl 32]} 6. Qe2 {[%emt 0:00:29]} Be7 {[%emt 0:00:17]} (6... d5 $1 $11) 7. e5 $14 {[%emt 0:01:24]} Nd5 {[%emt 0:00:11]} 8. c4 {[%emt 0:01:45]} Nc7 {[%emt 0:07:36]} 9. dxc5 {[%emt 0:03:27] White is better.} bxc5 {[%emt 0:01:33]} 10. O-O {[%emt 0:00:52]} Nc6 {[%emt 0:04:23]} 11. Nbd2 {[%emt 0:10:42]} (11. Nc3 $16) 11... f5 {[%emt 0:06:20]} 12. exf6 {[%emt 0:03:21]} gxf6 {[%emt 0:02:02] [#]} 13. b4 $1 {[%emt 0:19:16][%mdl 512]} cxb4 {[%emt 0:10:59]} 14. Bb2 {[%emt 0:02:01] Hoping for Ng5.} d6 {[%emt 0:03:27]} ({Black should try} 14... O-O $1 $14) 15. Ne4 {[%emt 0:10:47] White has more active pieces.} ({Better is} 15. Rfd1 $1 $16) 15... Kd7 $2 {[%emt 0:06:48][%mdl 8192]} (15... O-O $1 $11) 16. Rfd1 {[%emt 0:06:45]} (16. c5 $142 {cxd6 would now be deadly.} d5 (16... dxc5 $2 17. Rac1 $18) 17. Rfd1 (17. Nd6 Bxd6 18. cxd6 Kxd6 $16)) 16... Kc8 {[%emt 0:01:00]} 17. Bc2 {[%emt 0:05:22]} Rg8 {[%emt 0:01:46]} 18. Nc5 {[%emt 0:11:22]} (18. Rxd6 $1 $18 {is more deadly.} Qf8 (18... Bxd6 19. Rd1 $18) 19. Rd2) 18... Qe8 {[%emt 0:20:05] [#]} (18... Rxg2+ $16 19. Kxg2 Qg8+ 20. Kh1 dxc5) 19. Nxb7 $1 $18 {[%emt 0:10:23]} (19. Nxe6 Ne5 20. Ned4 Qh5 $16) 19... Kxb7 {[%emt 0:00:07]} 20. Nd4 {[%emt 0:00:03]} (20. Bxh7 Rg4 $18) 20... Nxd4 {[%emt 0:06:10]} 21. Bxd4 {[%emt 0:00:06]} (21. Rxd4 $6 f5 $16) 21... f5 {[%emt 0:00:58]} 22. a3 {[%emt 0:02:57]} a5 {[%emt 0:02:19]} 23. axb4 {[%emt 0:01:10]} Qc6 {[%emt 0:04:35][%csl Gg8][%cal Rc6g2]} 24. f3 $2 {[%emt 0:00:31]} (24. bxa5 $2 Qxg2#) (24. g3 $18 axb4 25. Rab1) 24... axb4 $11 {[%emt 0:00:19]} 25. Rab1 {[%emt 0:03:24]} Ra2 $2 {[%emt 0:04:26][%mdl 8192]} (25... d5 $11 {and Black stays safe.} 26. Bb3 dxc4 27. Bxc4 Rgd8) 26. Rxb4+ $18 {[%emt 0:01:07]} Kc8 {[%emt 0:00:03]} 27. Rb6 {[%emt 0:02:03]} Qa8 {[%emt 0:02:00] [#]} 28. c5 $1 {[%emt 0:00:59][%mdl 512]} dxc5 {[%emt 0:02:41] [#]} (28... Rd8 29. c6) 29. Be5 {[%emt 0:01:16] Intending Bxc7 and mate.} ({Inferior is} 29. Rxe6 Rxc2 30. Qxc2 Nxe6 $17) 29... Rxc2 {[%emt 0:01:04]} 30. Qxc2 {[%emt 0:00:27] And now Bxc7 would win.} Qxf3 {[%emt 0:00:13]} 31. Rdb1 {[%emt 0:00:59] White wants to mate with Rb8+.} ({Not} 31. Kh1 Rxg2 32. Qb3 Qxb3 33. Rxb3 Re2 $15) 31... Qe3+ {[%emt 0:08:53]} 32. Kh1 {[%emt 0:00:03]} Qxe5 {[%emt 0:00:25]} 33. Rb8+ {[%emt 0:00:17] White mates.} Kd7 {[%emt 0:00:06]} 34. Qa4+ {[%emt 0:01:01]} Kd6 {[%emt 0:00:20]} 35. R8b6+ {[%emt 0:00:38]} Kd5 {[%emt 0:00:18]} 36. Rd1+ {[%emt 0:00:04] Weighted Error Value: White=0.29 (precise) /Black=0.80.  Loses game:     	---       	Black=3      Missed win:     	White=1     	---        Mistake:       	White=4     	Black=1      Inaccurate:     	---       	Black=3      OK:         	White=9     	Black=8      Best:        	White=2     	Black=1      Strong:       	White=1     	---} (36. Qc6+ $142 Kc4 37. R6b4+ (37. Qa4+ Kd5 $18) 37... Kd3 38. Qf3+ Kc2 39. Qd1+ Kc3 40. R1b3#) 1-0

[Event "Budapest IM-B ONE WEEK Feb 2024"]
[Site "Budapest"]
[Date "2024.02.29"]
[Round "6.5"]
[White "Mouhamad, Joachim"]
[Black "Velikic, Adela"]
[Result "1-0"]
[ECO "B10"]
[WhiteElo "2316"]
[BlackElo "2266"]
[Annotator "RC"]
[PlyCount "191"]
[EventDate "2024.02.25"]
[EventType "tourn"]
[EventCountry "HUN"]
[SourceTitle "playchess.com"]
[Source "ChessBase"]
[SourceQuality "1"]
[TimeControl "5400+30"]

1. e4 {[%emt 0:02:32]} c6 {[%emt 0:00:08]} 2. Nf3 {[%emt 0:00:24]} d5 {[%emt 0:00:10]} 3. Nc3 {[%emt 0:00:21]} dxe4 {[%emt 0:00:40]} 4. Nxe4 {[%emt 0:00:10]} Nf6 {[%emt 0:00:04]} 5. Nxf6+ {[%emt 0:03:00]} exf6 {[%emt 0:00:26]} 6. Bc4 {[%emt 0:00:09]} Qe7+ {[%emt 0:13:35]} 7. Qe2 {[%emt 0:01:09]} Qxe2+ {[%emt 0:04:10]} 8. Bxe2 {[%emt 0:00:43]} Bd6 {[%emt 0:04:38]} 9. O-O {[%emt 0:01:03]} O-O {[%emt 0:00:45]} 10. d4 {[%emt 0:00:35]} Bf5 {[%emt 0:01:55]} 11. c4 {[%emt 0:01:49]} Re8 {[%emt 0:05:34]} 12. Be3 {[%emt 0:10:17]} g5 {[%emt 0:07:36]} 13. Rfe1 {[%emt 0:08:52]} Nd7 {[%emt 0:01:54]} 14. Rad1 {[%emt 0:01:19]} Bc2 {[%emt 0:05:07]} 15. Rd2 {[%emt 0:02:48]} Bg6 {[%emt 0:00:40]} 16. Rc1 {[%emt 0:00:49]} Bb4 {[%emt 0:19:41]} 17. Rdd1 {[%emt 0:00:28]} h6 {[%emt 0:01:25]} 18. a3 {[%emt 0:04:26]} Bf8 {[%emt 0:01:09]} 19. Kf1 {[%emt 0:25:29]} f5 {[%emt 0:01:31]} 20. g3 {[%emt 0:00:34]} Bg7 {[%emt 0:05:51]} 21. h4 {[%emt 0:00:59]} f4 {[%emt 0:15:49]} 22. gxf4 {[%emt 0:00:30]} gxf4 {[%emt 0:00:21]} 23. Bxf4 {[%emt 0:00:54]} Re4 {[%emt 0:00:34]} 24. Bg3 {[%emt 0:04:55]} Bh5 {[%emt 0:03:21]} 25. Ng1 {[%emt 0:00:48]} Nf6 {[%emt 0:02:33]} 26. Rc2 {[%emt 0:01:20]} Bg6 {[%emt 0:02:02]} 27. Rcd2 {[%emt 0:01:07]} Rd8 {[%emt 0:00:48]} 28. Bf3 {[%emt 0:00:33]} Ree8 {[%emt 0:01:09]} 29. Be5 {[%emt 0:02:57]} Ne4 {[%emt 0:00:47]} 30. Bxe4 {[%emt 0:00:10]} Bxe4 {[%emt 0:00:29]} 31. Bxg7 {[%emt 0:00:16]} Kxg7 {[%emt 0:00:03]} 32. f3 {[%emt 0:01:45]} Bg6 {[%emt 0:00:37]} 33. Kf2 {[%emt 0:00:12]} Rd6 {[%emt 0:00:40]} 34. Ne2 {[%emt 0:00:26]} Rf6 {[%emt 0:00:34]} 35. d5 {[%emt 0:05:18]} cxd5 {[%emt 0:00:05]} 36. cxd5 {[%emt 0:00:08]} Kf8 {[%emt 0:00:14]} 37. Ng3 {[%emt 0:06:10]} Be4 {[%emt 0:01:15]} 38. Nxe4 {[%emt 0:00:14]} Rxe4 {[%emt 0:00:01]} 39. d6 {[%emt 0:01:41]} Re8 {[%emt 0:00:02]} 40. Rc1 {[%emt 0:06:08]} Rd8 {[%emt 0:00:09]} 41. Rc7 {[%emt 0:00:33]} Rfxd6 {[%emt 0:00:25]} 42. Rxd6 {[%emt 0:00:02]} Rxd6 {[%emt 0:00:02]} 43. Rxb7 {[%emt 0:00:09]} a6 {[%emt 0:00:22]} 44. Ke3 {[%emt 0:00:22]} Kg7 {[%emt 0:00:52]} 45. b4 {[%emt 0:02:55]} Re6+ {[%emt 0:01:41]} 46. Kf4 {[%emt 0:00:18]} Rf6+ {[%emt 0:00:19]} 47. Kg3 {[%emt 0:00:02]} Rg6+ {[%emt 0:00:22]} 48. Kf2 {[%emt 0:00:02]} Rc6 {[%emt 0:00:41]} 49. a4 {[%emt 0:00:23]} Rc4 {[%emt 0:00:13]} 50. Kg3 {[%emt 0:01:21]} a5 {[%emt 0:00:15]} 51. bxa5 {[%emt 0:00:32]} Rxa4 {[%emt 0:00:01]} 52. Rb5 {[%emt 0:00:21]} Kg6 {[%emt 0:01:39]} 53. h5+ {[%emt 0:02:32]} Kf6 {[%emt 0:00:16]} 54. Kf2 {[%emt 0:01:15]} Ra3 {[%emt 0:00:49]} 55. Ke2 {[%emt 0:00:12]} Ke6 {[%emt 0:00:27]} 56. Kf2 {[%emt 0:01:42]} Kf6 {[%emt 0:00:12]} 57. Rc5 {[%emt 0:00:04]} Ke6 {[%emt 0:00:24]} 58. Kg3 {[%emt 0:00:17]} Ra4 {[%emt 0:00:41]} 59. f4 {[%emt 0:00:47]} Ra1 {[%emt 0:01:11]} 60. Kf3 {[%emt 0:00:27]} Ra3+ {[%emt 0:00:28]} 61. Kg4 {[%emt 0:00:09]} Kf6 {[%emt 0:00:34]} 62. Rc6+ {[%emt 0:00:22]} Kg7 {[%emt 0:00:08]} 63. a6 {[%emt 0:01:22]} Ra5 {[%emt 0:00:24]} 64. f5 {[%emt 0:00:53]} Ra4+ {[%emt 0:00:51]} 65. Kf3 {[%emt 0:00:02]} Kh7 {[%emt 0:00:37]} 66. Ke3 {[%emt 0:00:29]} Rh4 {[%emt 0:00:29]} 67. Rc7 {[%emt 0:02:25]} Kg7 {[%emt 0:00:17]} 68. a7 {[%emt 0:00:29]} Ra4 {[%emt 0:00:01]} 69. Kd3 {[%emt 0:00:12]} Kf6 {[%emt 0:00:13]} 70. Kc3 {[%emt 0:00:09]} Kxf5 {[%emt 0:00:54]} 71. Kb3 {[%emt 0:00:15]} Ra1 {[%emt 0:01:05]} 72. Kb4 {[%emt 0:00:01]} Kg4 {[%emt 0:00:31]} 73. Rxf7 {[%emt 0:00:20]} Rb1+ {[%emt 0:00:29]} 74. Kc5 {[%emt 0:00:11]} Rc1+ {[%emt 0:00:24]} 75. Kb6 {[%emt 0:00:05]} Rb1+ {[%emt 0:00:15]} 76. Kc7 {[%emt 0:00:37]} Ra1 {[%emt 0:00:08]} 77. Kb6 {[%emt 0:01:45]} Rb1+ {[%emt 0:00:22]} 78. Kc6 {[%emt 0:00:03]} Rc1+ {[%emt 0:00:41]} 79. Kb7 {[%emt 0:00:19]} Rb1+ {[%emt 0:00:21]} 80. Kc8 {[%emt 0:00:51]} Ra1 {[%emt 0:00:31]} 81. Kb8 {[%emt 0:00:02]} Kxh5 {[%emt 0:00:31]} 82. a8=Q {[%emt 0:00:11]} Rxa8+ {[%emt 0:00:06]} 83. Kxa8 {[%emt 0:00:04]} Kg4 {[%emt 0:00:15]} 84. Rg7+ {[%emt 0:00:40]} Kf4 {[%emt 0:01:06]} 85. Rh7 {[%emt 0:00:11]} Kg5 {[%emt 0:00:06]} 86. Kb7 {[%emt 0:00:10]} h5 {[%emt 0:00:07]} 87. Kc6 {[%emt 0:00:16]} Kg4 {[%emt 0:00:29]} 88. Kd5 {[%emt 0:00:23]} h4 {[%emt 0:00:06]} 89. Ke4 {[%emt 0:00:14]} Kg3 {[%emt 0:00:48]} 90. Rg7+ {[%emt 0:00:34]} Kf2 {[%emt 0:00:20]} 91. Rh7 {[%emt 0:02:31]} Kg3 {[%emt 0:00:05]} 92. Ke3 {[%emt 0:00:16]} h3 {[%emt 0:00:13]} 93. Rg7+ {[%emt 0:00:08]} Kh2 {[%emt 0:00:20]} 94. Kf2 {[%emt 0:00:07]} Kh1 {[%emt 0:00:06]} 95. Rg1+ {[%emt 0:00:16]} Kh2 {[%emt 0:00:06]} 96. Rg3 {[%emt 0:00:04]} 1-0